fUSD/lending_fUSD_20241207
["ID","MTS","AMOUNT","RATE_DAILY","PERIOD"]
[344587370,1733580650707,-500.0,0.00015131,2]
[344587371,1733580650716,-500.0,0.00015131,2]
[344587372,1733580650732,-721.54,0.00015131,2]
[344587373,1733580650742,-721.54,0.00015131,2]
[344587374,1733580650751,-721.54,0.00015131,2]
[344587375,1733580650761,-721.54,0.00015131,2]
[344587376,1733580650773,-721.54,0.00015131,2]
[344587377,1733580650783,-721.54,0.00015131,2]
[344587378,1733580650792,-721.54,0.00015131,2]
[344587379,1733580650803,-721.54,0.00015131,2]
[344587380,1733580650814,-721.54,0.00015131,2]
[344587381,1733580650823,-721.54,0.00015131,2]
[344587382,1733580650832,-721.54,0.00015131,2]
[344587383,1733580650842,-518.47,0.00015131,2]
[344587384,1733580650851,-518.47,0.00015131,2]
[344587385,1733580650860,-518.47,0.00015131,2]
[344587386,1733580650870,-518.47,0.00015131,2]
[344587387,1733580650879,-518.47,0.00015131,2]
[344587388,1733580650889,-518.47,0.00015131,2]
[344587389,1733580650898,-518.47,0.00015131,2]
[344587390,1733580650908,-518.47,0.00015131,2]
[344587391,1733580650917,-518.47,0.00015131,2]
[344587392,1733580650927,-518.47,0.00015131,2]
[344587393,1733580650936,-528.27,0.00015131,2]
[344587394,1733580650948,-500.0,0.00015131,2]
[344587395,1733580650957,-528.27,0.00015131,2]
[344587396,1733580650967,-500.0,0.00015131,2]
[344587397,1733580650977,-528.27,0.00015131,2]
[344587398,1733580650987,-500.0,0.00015131,2]
[344587399,1733580650997,-528.27,0.00015131,2]
[344587400,1733580651007,-500.0,0.00015131,2]
[344587401,1733580651017,-528.27,0.00015131,2]
[344587402,1733580651026,-500.0,0.00015131,2]
[344587403,1733580651037,-528.27,0.00015131,2]
[344587404,1733580651047,-500.0,0.00015131,2]
[344587405,1733580651056,-528.27,0.00015131,2]
[344587406,1733580651065,-500.0,0.00015131,2]
[344587407,1733580651074,-528.27,0.00015131,2]
[344587408,1733580651084,-500.0,0.00015131,2]
[344587409,1733580651094,-528.27,0.00015131,2]
[344587410,1733580651103,-500.0,0.00015131,2]
[344587411,1733580651112,-528.27,0.00015131,2]
[344587412,1733580651121,-500.0,0.00015131,2]
[344587413,1733580651131,-500.0,0.00015131,2]
[344587414,1733580651140,-500.0,0.00015131,2]
[344587415,1733580651150,-500.0,0.00015131,2]
[344587416,1733580651160,-500.0,0.00015131,2]
[344587417,1733580651169,-500.0,0.00015131,2]
[344587418,1733580651179,-500.0,0.00015131,2]
[344587419,1733580651190,-500.0,0.00015131,2]
[344587420,1733580651199,-500.0,0.00015131,2]
[344587421,1733580651346,-500.0,0.00015131,2]
[344587422,1733580651356,-500.0,0.00015131,2]
[344587423,1733580651365,-500.0,0.00015131,2]
[344587424,1733580651374,-500.0,0.00015131,2]
[344587425,1733580651384,-500.0,0.00015131,2]
[344587426,1733580651393,-500.0,0.00015131,2]
[344587427,1733580651402,-202.60440989,0.00015131,2]
[344587428,1733580651412,-500.0,0.00015131,2]
[344587429,1733580651421,-500.0,0.00015131,2]
[344587430,1733580651431,-500.0,0.00015131,2]
[344587431,1733580651442,-500.0,0.00015131,2]
[344587432,1733580651455,-500.0,0.00015131,2]
[344587433,1733580651464,-500.0,0.00015131,2]
[344587434,1733580651474,-500.0,0.00015131,2]
[344587435,1733580651483,-500.0,0.00015131,2]
[344587436,1733580651492,-500.0,0.00015131,2]
[344587437,1733580651502,-500.0,0.00015131,2]
[344587438,1733580651511,-500.0,0.00015131,2]
[344587439,1733580651521,-500.0,0.00015131,2]
[344587440,1733580651531,-500.0,0.00015131,2]
[344587441,1733580651540,-575.90134389,0.00015131,2]
[344587442,1733580651549,-662.48,0.00015131,2]
[344587443,1733580651559,-662.48,0.00015131,2]
[344587444,1733580651568,-662.48,0.00015131,2]
[344587445,1733580651577,-662.48,0.00015131,2]
[344587446,1733580651587,-662.48,0.00015131,2]
[344587447,1733580651597,-662.48,0.00015131,2]
[344587448,1733580651608,-662.48,0.00015131,2]
[344587449,1733580651617,-662.48,0.00015131,2]
[344587450,1733580651627,-662.48,0.00015131,2]
[344587451,1733580651637,-662.48,0.00015131,2]
[344587452,1733580651646,-662.48,0.00015131,2]
[344587453,1733580651656,-500.0,0.00015131,2]
[344587454,1733580651665,-500.0,0.00015131,2]
[344587455,1733580651674,-406.89541385,0.00015131,2]
[344587456,1733580651683,-784.88,0.00015131,2]
[344587457,1733580651694,-784.88,0.00015131,2]
[344587458,1733580651703,-784.88,0.00015131,2]
[344587459,1733580651713,-784.88,0.00015131,2]
[344587460,1733580651723,-784.88,0.00015131,2]
[344587461,1733580651734,-784.88,0.00015131,2]
[344587462,1733580651743,-784.88,0.00015131,2]
[344587463,1733580651753,-784.88,0.00015131,2]
[344587464,1733580651762,-784.88,0.00015131,2]
[344587465,1733580651773,-784.88,0.00015131,2]
[344587466,1733580651783,-140545.11120966,0.00015132,4]
[344587467,1733580651867,-208.49101422,0.00015059,2]
[344587468,1733580651876,-221621.08346063,0.00015132,4]
[344587469,1733580651887,-1944.0,0.00015132,4]
[344587470,1733580651898,-3456.15605549,0.00015132,4]
[344587471,1733580651913,-4420.200008,0.00015132,4]
[344587472,1733580704486,231000.0,0.00021,120]
[344587473,1733580750046,251874.0829711,0.0002,120]
[344587482,1733581647661,4944.0,6e-05,2]
[344587483,1733581647684,10000.0,6e-05,2]
[344587484,1733581647706,10000.0,6e-05,2]
[344587485,1733581647728,5056.0,6e-05,2]
[344587503,1733581831556,-10000.0,7e-05,2]
[344587504,1733581831566,-150.0,8.78e-05,2]
[344587505,1733581831576,-912.4478463,0.00011166,2]
[344587506,1733581831585,-196.31,0.00011567,2]
[344587507,1733581831595,-250.0,0.00013271,2]
[344587508,1733581831604,-250.0,0.00013329,2]
[344587509,1733581831614,-178.05,0.00013329,2]
[344587510,1733581831625,-200.0,0.00013345,2]
[344587511,1733581831634,-23890.0,0.00013355,2]
[344587512,1733581831644,-200.0,0.00013359,2]
[344587513,1733581831653,-161.33,0.00013367,2]
[344587514,1733581831662,-1852.42,0.00013425,2]
[344587515,1733581831671,-1847.39,0.00013425,2]
[344587516,1733581831680,-1000.0,0.0001345,2]
[344587517,1733581831690,-150.0,0.00013484,2]
[344587518,1733581831699,-384.15,0.00013518,2]
[344587519,1733581831709,-200.0,0.00013699,2]
[344587520,1733581831720,-370.09,0.00013733,2]
[344587521,1733581831730,-196.31,0.00013831,2]
[344587522,1733581831739,-1300.0,0.000139,5]
[344587523,1733581831748,-853.236,0.00014,2]
[344587524,1733581831758,-2600.0,0.00014,5]
[344587525,1733581831767,-150.0,0.00014099,2]
[344587526,1733581831777,-4000.0,0.000141,5]
[344587527,1733581831787,-5300.0,0.000142,5]
[344587528,1733581831797,-6700.0,0.000143,5]
[344587529,1733581831806,-166.87,0.00014341,2]
[344587530,1733581831815,-317.319,0.0001437,2]
[344587531,1733581831824,-1300.0,0.000144,5]
[344587532,1733581831833,-1300.0,0.000145,5]
[344587533,1733581831843,-1534.96,0.00014553,2]
[344587534,1733581831854,-1300.0,0.000146,5]
[344587535,1733581831864,-1574.0,0.00014636,2]
[344587536,1733581831875,-232.17,0.00014639,2]
[344587537,1733581831885,-150.0,0.0001464,2]
[344587538,1733581831894,-150.0,0.0001464,2]
[344587539,1733581831903,-150.0,0.0001464,2]
[344587540,1733581831912,-200.0,0.0001468,2]
[344587541,1733581831921,-1300.0,0.000147,5]
[344587542,1733581831931,-1713.0,0.000148,5]
[344587543,1733581831940,-1852.93168636,0.00014829,2]
[344587544,1733581831950,-2500.0,0.00014833,2]
[344587545,1733581831959,-156.36826068,0.00014879,2]
[344587546,1733581831969,-177856.06820666,0.00014933,2]
[344587549,1733581832347,-25136.36216951,0.00014933,2]
[344587550,1733581832358,-3152.83263684,0.00014933,2]
[344587551,1733581832369,-2056.0,0.00014933,2]
[344587552,1733581832380,-515.52419999,0.00014933,2]
[344587553,1733581832391,-620.39363589,0.00014933,2]
[344587556,1733581839446,-493.497968,0.00014933,2]
[344587557,1733581839570,-985.07995557,0.00014933,2]
[344587558,1733581839582,-1451.88350013,0.00014933,2]
[344587559,1733581839594,-1179.325,0.00014933,2]
[344587560,1733581839605,-2791.77,0.00014933,2]
[344587561,1733581839684,-645.87935062,0.00014933,2]
[344587570,1733581842701,-2779.09574134,0.00014933,2]
[344587571,1733581842712,-6134.68861293,0.00014933,2]
[344587572,1733581842873,-2196.40230654,0.00014933,2]
[344587573,1733581843038,-474532.4085216,0.00014933,2]
[344587574,1733581843050,-70488.39853156,0.00014933,2]
[344587575,1733581843060,-156.36826066,0.00014944,2]
[344587576,1733581843069,-200.0,0.00014958,2]
[344587577,1733581843079,-150.0,0.00014975,2]
[344587578,1733581843088,-200.0,0.00014976,2]
[344587579,1733581843101,-3000.0,0.0001498,2]
[344587580,1733581843110,-200.0,0.00014982,2]
[344587581,1733581843119,-200.0,0.00014982,2]
[344587582,1733581843128,-200.0,0.00014983,2]
[344587583,1733581843140,-200.0,0.00014983,2]
[344587584,1733581843150,-123.23244778,0.00014985,2]
[344587586,1733581845584,-76.76755222,0.00014985,2]
[344587587,1733581845595,-200.0,0.00014986,2]
[344587588,1733581845605,-383.74745778,0.0001499,2]
[344587589,1733581845902,-4944.25154,0.0001499,2]
[344587590,1733581845913,-871.29282,0.0001499,2]
[344587596,1733583031792,-176.67,0.00011966,2]
[344587597,1733583031802,-215.80042,0.000129,2]
[344587598,1733583031812,-450.0,0.00013,2]
[344587599,1733583031821,-215.80041998,0.00013322,2]
[344587600,1733583031830,-215.80041998,0.00013744,2]
[344587601,1733583031839,-150.0,0.00013844,2]
[344587602,1733583031849,-1500.0,0.00013846,2]
[344587603,1733583031858,-1000.0,0.00013854,2]
[344587604,1733583031867,-4444.7868054,0.00013855,2]
[344587605,1733583031886,-17.8631946,0.00013855,2]
[344587606,1733583031895,-250.0,0.00013875,2]
[344587607,1733583031905,-172.66,0.00013875,2]
[344587608,1733583031914,-35.54391454,0.00013898,2]
[344587609,1733583032231,-752.13608546,0.00013898,2]
[344587610,1733583032240,-600.0,0.000139,5]
[344587611,1733583032249,-300.0,0.00013906,2]
[344587612,1733583032258,-1300.0,0.00014,5]
[344587613,1733583032267,-2000.0,0.000141,5]
[344587614,1733583032276,-7455.0,0.00014186,2]
[344587615,1733583032285,-2700.0,0.000142,5]
[344587616,1733583032294,-176.67,0.0001423,2]
[344587617,1733583032305,-3400.0,0.000143,5]
[344587618,1733583032314,-303.848,0.0001437,2]
[344587619,1733583032323,-600.0,0.000144,5]
[344587620,1733583032332,-600.0,0.000145,5]
[344587621,1733583032341,-600.0,0.000146,5]
[344587622,1733583032350,-600.0,0.000147,5]
[344587623,1733583032358,-1500.0,0.000148,5]
[344587624,1733583032368,-150.0,0.00014858,2]
[344587625,1733583032378,-150.0,0.00014858,2]
[344587626,1733583032387,-150.0,0.00014858,2]
[344587627,1733583032396,-150.0,0.00014863,2]
[344587628,1733583032405,-150.0,0.00014866,2]
[344587629,1733583032415,-150.0,0.00014867,2]
[344587630,1733583032424,-150.0,0.00014879,2]
[344587631,1733583032435,-150.0,0.0001488,2]
[344587632,1733583032446,-150.0,0.00014882,2]
[344587633,1733583032455,-150.0,0.00014883,2]
[344587634,1733583032465,-150.0,0.00014884,2]
[344587635,1733583032475,-150.0,0.00014887,2]
[344587636,1733583032484,-150.0,0.00014889,2]
[344587637,1733583032496,-150.0,0.00014893,2]
[344587638,1733583032506,-150.0,0.00014894,2]
[344587639,1733583032516,-150.0,0.00014896,2]
[344587640,1733583032525,-150.0,0.000149,2]
[344587641,1733583032535,-150.0,0.00014902,2]
[344587642,1733583032544,-150.0,0.00014904,2]
[344587644,1733583032554,-150.0,0.00014921,2]
[344587646,1733583032564,-150.0,0.00014922,2]
[344587648,1733583032573,-150.0,0.00014923,2]
[344587650,1733583032583,-150.0,0.00014924,2]
[344587651,1733583032592,-150.0,0.00014926,2]
[344587652,1733583032602,-150.0,0.00014926,2]
[344587653,1733583032611,-150.0,0.00014931,2]
[344587654,1733583032620,-150.0,0.00014931,2]
[344587655,1733583032630,-493.68,0.00014933,2]
[344587656,1733583032639,-150.0,0.00014933,2]
[344587658,1733583032648,-150.0,0.00014933,2]
[344587661,1733583032657,-150.0,0.00014935,2]
[344587663,1733583032667,-150.0,0.00014935,2]
[344587665,1733583032676,-3178.9009,0.00014936,2]
[344587667,1733583032685,-150.0,0.00014938,2]
[344587669,1733583032694,-150.0,0.0001494,2]
[344587671,1733583032704,-150.0,0.00014943,2]
[344587673,1733583032713,-150.0,0.00014948,2]
[344587675,1733583032722,-150.0,0.00014948,2]
[344587677,1733583032731,-150.0,0.00014951,2]
[344587679,1733583032740,-150.0,0.00014953,2]
[344587681,1733583032750,-150.0,0.00014953,2]
[344587683,1733583032759,-150.0,0.00014953,2]
[344587685,1733583032769,-150.0,0.00014959,2]
[344587687,1733583032777,-2500.0,0.00014968,2]
[344587689,1733583032786,-150.0,0.00014968,2]
[344587691,1733583032795,-626.45164803,0.00014968,2]
[344587693,1733583032804,-150.0,0.0001497,2]
[344587695,1733583032815,-150.0,0.0001497,2]
[344587697,1733583032824,-150.0,0.00014975,2]
[344587699,1733583032834,-150.0,0.00014977,2]
[344587701,1733583032844,-150.0,0.00014979,2]
[344587703,1733583032853,-150.0,0.0001498,2]
[344587705,1733583032863,-626.45164798,0.00014983,2]
[344587706,1733583032872,-150.0,0.00014983,2]
[344587707,1733583032884,-150.0,0.00014983,2]
[344587708,1733583032895,-150.0,0.00014985,2]
[344587709,1733583032904,-150.0,0.00014986,2]
[344587710,1733583032914,-14459.57427926,0.0001499,2]
[344587711,1733583032926,-1174.6255501,0.0001499,2]
[344587712,1733583032937,-16298.42567946,0.0001499,2]
[344587713,1733583032947,-4435.95,0.0001499,2]
[344587714,1733583032956,-3000.0,0.0001499,2]
[344587715,1733583032966,-150.0,0.00014993,2]
[344587716,1733583032975,-200.0,0.00014996,2]
[344587717,1733583032985,-200.0,0.00014996,2]
[344587718,1733583032994,-626.45164798,0.00014997,2]
[344587719,1733583033004,-150.0,0.00014998,2]
[344587720,1733583033013,-21737.0,0.00015,2]
[344587721,1733583033217,-500.0,0.00015,2]
[344587722,1733583033227,-34799.4743137,0.00015,2]
[344587723,1733583033237,-150.0,0.00015004,2]
[344587724,1733583033247,-150.0,0.00015005,2]
[344587725,1733583033257,-150.0,0.00015006,2]
[344587726,1733583033266,-150.0,0.00015008,2]
[344587727,1733583033276,-1348.46753917,0.00015012,2]
[344587728,1733583033285,-626.45164798,0.00015012,2]
[344587729,1733583033295,-150.0,0.00015014,2]
[344587730,1733583033305,-150.0,0.00015016,2]
[344587731,1733583033315,-150.0,0.00015019,2]
[344587732,1733583033324,-150.0,0.00015023,2]
[344587733,1733583033334,-150.0,0.00015024,2]
[344587734,1733583033344,-150.0,0.00015024,2]
[344587735,1733583033353,-150.0,0.00015025,2]
[344587736,1733583033362,-1348.46753917,0.00015027,2]
[344587737,1733583033371,-626.45164798,0.00015027,2]
[344587738,1733583033383,-150.0,0.00015027,2]
[344587739,1733583033392,-150.0,0.00015028,2]
[344587740,1733583033402,-150.0,0.00015029,2]
[344587741,1733583033411,-573.53327111,0.00015032,2]
[344587742,1733583033421,-150.0,0.00015038,2]
[344587743,1733583033434,-1348.46753917,0.00015041,2]
[344587744,1733583033443,-626.45164798,0.00015041,2]
[344587745,1733583033452,-682.589,0.00015047,2]
[344587746,1733583033461,-150.0,0.00015053,2]
[344587747,1733583033471,-150.0,0.00015055,2]
[344587748,1733583033480,-150.0,0.00015056,2]
[344587749,1733583033490,-1348.46753917,0.00015056,2]
[344587750,1733583033499,-626.45164798,0.00015056,2]
[344587751,1733583033510,-150.0,0.00015057,2]
[344587752,1733583033519,-150.0,0.00015057,2]
[344587753,1733583033529,-150.0,0.00015061,2]
[344587754,1733583033538,-150.0,0.00015062,2]
[344587755,1733583033548,-150.0,0.00015062,2]
[344587756,1733583033558,-150.0,0.00015064,2]
[344587757,1733583033568,-150.0,0.00015067,2]
[344587758,1733583033578,-500.0,0.00015068,2]
[344587759,1733583033587,-500.0,0.00015068,2]
[344587760,1733583033597,-500.0,0.00015068,2]
[344587761,1733583033607,-202.85141382,0.00015068,2]
[344587762,1733583033617,-599.23,0.00015068,2]
[344587763,1733583033629,-599.23,0.00015068,2]
[344587764,1733583033638,-599.23,0.00015068,2]
[344587765,1733583033647,-599.23,0.00015068,2]
[344587766,1733583033657,-500.0,0.00015068,2]
[344587767,1733583033667,-501.78480879,0.00015068,2]
[344587768,1733583033676,-500.0,0.00015068,2]
[344587769,1733583033686,-500.0,0.00015068,2]
[344587770,1733583033696,-500.0,0.00015068,2]
[344587771,1733583033705,-500.0,0.00015068,2]
[344587772,1733583033715,-500.0,0.00015068,2]
[344587773,1733583033725,-500.0,0.00015068,2]
[344587774,1733583033734,-500.0,0.00015068,2]
[344587775,1733583033744,-500.0,0.00015068,2]
[344587776,1733583033754,-501.01415139,0.00015068,2]
[344587777,1733583033764,-476.40746415,0.00015068,2]
[344587778,1733583033774,-500.0,0.00015068,2]
[344587779,1733583033783,-500.0,0.00015068,2]
[344587780,1733583033793,-500.0,0.00015068,2]
[344587781,1733583033803,-610.6,0.00015068,2]
[344587782,1733583033813,-500.0,0.00015068,2]
[344587783,1733583033822,-570.14,0.00015068,2]
[344587784,1733583033832,-500.0,0.00015068,2]
[344587785,1733583033842,-500.0,0.00015068,2]
[344587786,1733583033852,-469.44,0.00015068,2]
[344587787,1733583033862,-530.58,0.00015068,2]
[344587788,1733583033872,-500.0,0.00015068,2]
[344587789,1733583033884,-500.0,0.00015068,2]
[344587790,1733583033895,-500.0,0.00015068,2]
[344587791,1733583033905,-500.0,0.00015068,2]
[344587792,1733583033915,-500.0,0.00015068,2]
[344587793,1733583033925,-500.0,0.00015068,2]
[344587794,1733583033934,-500.0,0.00015068,2]
[344587795,1733583033944,-500.0,0.00015068,2]
[344587796,1733583033954,-500.0,0.00015068,2]
[344587797,1733583033964,-500.0,0.00015068,2]
[344587798,1733583033974,-505.64297294,0.00015068,2]
[344587799,1733583033984,-500.0,0.00015068,2]
[344587800,1733583033994,-500.0,0.00015068,2]
[344587801,1733583034004,-500.0,0.00015068,2]
[344587802,1733583034013,-538.52503845,0.00015068,2]
[344587803,1733583034023,-502.39445508,0.00015068,2]
[344587804,1733583034032,-548.10161576,0.00015068,2]
[344587805,1733583034042,-497.62468099,0.00015068,2]
[344587806,1733583034051,-503.4419655,0.00015068,2]
[344587807,1733583034061,-503.83340962,0.00015068,2]
[344587808,1733583034071,-500.0,0.00015068,2]
[344587809,1733583034081,-489.69271313,0.00015068,2]
[344587810,1733583034091,-299.82952873,0.00015068,2]
[344587811,1733583034101,-500.0,0.00015068,2]
[344587812,1733583034111,-500.0,0.00015068,2]
[344587813,1733583034121,-500.0,0.00015068,2]
[344587814,1733583034133,-407.18800322,0.00015068,2]
[344587815,1733583034143,-500.0,0.00015068,2]
[344587816,1733583034152,-500.0,0.00015068,2]
[344587817,1733583034162,-197.14,0.00015068,2]
[344587818,1733583034172,-500.0,0.00015068,2]
[344587819,1733583034181,-500.0,0.00015068,2]
[344587820,1733583034190,-500.0,0.00015068,2]
[344587821,1733583034200,-500.0,0.00015068,2]
[344587822,1733583034210,-305.38,0.00015068,2]
[344587823,1733583034220,-500.0,0.00015068,2]
[344587824,1733583034229,-500.0,0.00015068,2]
[344587825,1733583034238,-500.0,0.00015068,2]
[344587826,1733583034248,-500.0,0.00015068,2]
[344587827,1733583034258,-502.05296852,0.00015068,2]
[344587828,1733583034267,-226.16937739,0.00015068,2]
[344587829,1733583034277,-503.98350182,0.00015068,2]
[344587830,1733583034287,-169.19155875,0.00015068,2]
[344587831,1733583034306,-330.80844125,0.00015068,2]
[344587832,1733583034316,-27.54514119,0.00015068,2]
[344587833,1733583034328,-472.45485881,0.00015068,2]
[344587834,1733583034338,-539.93,0.00015068,2]
[344587835,1733583034348,-502.14380622,0.00015068,2]
[344587836,1733583034358,-501.59262807,0.00015068,2]
[344587837,1733583034367,-500.0,0.00015068,2]
[344587838,1733583034377,-350.74,0.00015068,2]
[344587839,1733583034389,-500.0,0.00015068,2]
[344587840,1733583034400,-500.0,0.00015068,2]
[344587841,1733583034410,-500.0,0.00015068,2]
[344587842,1733583034421,-500.0,0.00015068,2]
[344587843,1733583034431,-468.00461804,0.00015068,2]
[344587844,1733583034444,-500.0,0.00015068,2]
[344587845,1733583034454,-500.0,0.00015068,2]
[344587846,1733583034464,-285.57826023,0.00015068,2]
[344587847,1733583034474,-608.1055514,0.00015068,2]
[344587848,1733583034484,-541.55337967,0.00015068,2]
[344587849,1733583034494,-503.96410605,0.00015068,2]
[344587850,1733583034504,-587.08704985,0.00015068,2]
[344587851,1733583034514,-26.34940584,0.00015068,2]
[344587852,1733583034532,-522.65048486,0.00015068,2]
[344587853,1733583034543,-500.0,0.00015068,2]
[344587854,1733583034552,-500.0,0.00015068,2]
[344587855,1733583034562,-500.0,0.00015068,2]
[344587856,1733583034571,-339.51,0.00015068,2]
[344587857,1733583034581,-500.0,0.00015068,2]
[344587858,1733583034590,-500.0,0.00015068,2]
[344587859,1733583034600,-500.0,0.00015068,2]
[344587860,1733583034610,-500.0,0.00015068,2]
[344587861,1733583034618,-500.0,0.00015068,2]
[344587862,1733583034631,-500.0,0.00015068,2]
[344587863,1733583034641,-500.0,0.00015068,2]
[344587864,1733583034650,-500.0,0.00015068,2]
[344587865,1733583034660,-500.0,0.00015068,2]
[344587866,1733583034669,-500.0,0.00015068,2]
[344587867,1733583034678,-500.0,0.00015068,2]
[344587868,1733583034688,-500.0,0.00015068,2]
[344587869,1733583034698,-500.0,0.00015068,2]
[344587870,1733583034707,-500.0,0.00015068,2]
[344587871,1733583034717,-500.0,0.00015068,2]
[344587872,1733583034726,-500.0,0.00015068,2]
[344587873,1733583034736,-500.0,0.00015068,2]
[344587874,1733583034746,-500.0,0.00015068,2]
[344587875,1733583034755,-500.0,0.00015068,2]
[344587876,1733583034765,-500.0,0.00015068,2]
[344587877,1733583034775,-500.0,0.00015068,2]
[344587878,1733583034784,-500.0000006,0.00015068,2]
[344587879,1733583034793,-218.69327019,0.00015068,2]
[344587880,1733583034803,-500.0,0.00015068,2]
[344587881,1733583034812,-500.0,0.00015068,2]
[344587882,1733583034822,-500.0,0.00015068,2]
[344587883,1733583034831,-500.0,0.00015068,2]
[344587884,1733583034841,-501.62300822,0.00015068,2]
[344587885,1733583034850,-580.34,0.00015068,2]
[344587886,1733583034859,-502.2459389,0.00015068,2]
[344587887,1733583034869,-500.0,0.00015068,2]
[344587888,1733583034879,-234.77577629,0.00015068,2]
[344587889,1733583034889,-500.0,0.00015068,2]
[344587890,1733583034898,-500.0,0.00015068,2]
[344587891,1733583034908,-206.49679009,0.00015068,2]
[344587892,1733583034917,-500.0,0.00015068,2]
[344587893,1733583034927,-500.0,0.00015068,2]
[344587894,1733583034937,-500.0,0.00015068,2]
[344587895,1733583034946,-500.0,0.00015068,2]
[344587896,1733583034955,-500.0,0.00015068,2]
[344587897,1733583034965,-500.0,0.00015068,2]
[344587898,1733583034974,-500.0,0.00015068,2]
[344587899,1733583034983,-368.59011158,0.00015068,2]
[344587900,1733583034992,-500.0,0.00015068,2]
[344587901,1733583035002,-500.0,0.00015068,2]
[344587902,1733583035011,-500.0,0.00015068,2]
[344587903,1733583035020,-178.52,0.00015068,2]
[344587904,1733583035030,-500.0,0.00015068,2]
[344587905,1733583035040,-151.0,0.00015068,2]
[344587906,1733583035050,-500.0,0.00015068,2]
[344587907,1733583035059,-500.0,0.00015068,2]
[344587908,1733583035068,-500.0,0.00015068,2]
[344587909,1733583035078,-500.0,0.00015068,2]
[344587910,1733583035087,-274.01603547,0.00015068,2]
[344587911,1733583035097,-504.01338897,0.00015068,2]
[344587912,1733583035106,-500.0,0.00015068,2]
[344587913,1733583035115,-500.0,0.00015068,2]
[344587914,1733583035127,-500.0,0.00015068,2]
[344587915,1733583035137,-468.50105598,0.00015068,2]
[344587916,1733583035146,-500.0,0.00015068,2]
[344587917,1733583035155,-500.0,0.00015068,2]
[344587918,1733583035165,-500.0,0.00015068,2]
[344587919,1733583035175,-500.0,0.00015068,2]
[344587920,1733583035184,-500.0,0.00015068,2]
[344587921,1733583035194,-500.0,0.00015068,2]
[344587922,1733583035204,-500.0,0.00015068,2]
[344587923,1733583035214,-500.0,0.00015068,2]
[344587924,1733583035224,-500.0,0.00015068,2]
[344587925,1733583035233,-500.0,0.00015068,2]
[344587926,1733583035243,-500.0,0.00015068,2]
[344587927,1733583035252,-500.0,0.00015068,2]
[344587928,1733583035262,-500.0,0.00015068,2]
[344587929,1733583035271,-500.0,0.00015068,2]
[344587930,1733583035281,-500.0,0.00015068,2]
[344587931,1733583035290,-500.0,0.00015068,2]
[344587932,1733583035300,-588.71483492,0.00015068,2]
[344587933,1733583035311,-500.0,0.00015068,2]
[344587934,1733583035321,-500.0,0.00015068,2]
[344587935,1733583035330,-500.0,0.00015068,2]
[344587936,1733583035339,-269.36,0.00015068,2]
[344587937,1733583035349,-500.0,0.00015068,2]
[344587938,1733583035358,-500.0,0.00015068,2]
[344587939,1733583035367,-500.0,0.00015068,2]
[344587940,1733583035378,-500.0,0.00015068,2]
[344587941,1733583035387,-500.0,0.00015068,2]